Cogmind - Beta 9.4 @@@ ROGUE MODE // 2020.02.19 @ 20:34:51 Player: Togure Result: Destroyed by G-34 Mercenary with Small Laser Performance ------------- Evolutions (0) 0 Regions Visited (1) 200 Robots Destroyed (2) 10 Value Destroyed (20) 20 Prototype IDs (0) 0 Alien Tech Used (0) 0 Bonus (0) 0 TOTAL SCORE: 230 Bonus ------- None Cogmind --------- Core Integrity 0/250 Matter 291/300 Energy 99/100 System Corruption 0% Temperature Cool (12) Movement Core (100) Ox1 Location -10/Materials Parts ------- > --- POWER (1) -------- (None) > --- PROPULSION (2) --- (None) > --- UTILITY (2) ------ Small Storage Unit > --- WEAPON (2) ------- (None) > --- INVENTORY (6) ---- Signal Interpreter Targeting Computer EM Pulse Gun Peak State ------------ > --- POWER ------------ Ion Engine > --- PROPULSION ------- Wheel Wheel > --- UTILITY ---------- Small Storage Unit > --- WEAPON ----------- Medium Laser Small Laser > --- INVENTORY -------- (None) [Rating: 6] Favorites ----------- Power Ion Engine Engine Ion Engine Propulsion Wheel Wheel Wheel Utility Small Storage Unit Storage Small Storage Unit Weapon Small Laser Energy Gun Small Laser Build | -11 -10 ------- Run | Scr Mat Slots Evolved . | . . Power . | . . Propulsion . | . . Utility . | . . Weapon . | . . Parts Attached 6 | 6 . Power 1 | 1 . Engine 1 | 1 . Core . | . . Reactor . | . . Propulsion 2 | 2 . Treads . | . . Leg . | . . Wheel 2 | 2 . Hover . | . . Flight . | . . Utility 1 | 1 . Device . | . . Storage 1 | 1 . Processor . | . . Hackware . | . . Protection . | . . Artifact . | . . Weapon 2 | 2 . Energy Gun 2 | 2 . Energy Cannon . | . . Ballistic Gun . | . . Ballistic Cannon . | . . Launcher . | . . Special Weapon . | . . Impact Weapon . | . . Slashing Weapon . | . . Piercing Weapon . | . . Special Melee Weapon . | . . Unidentified Prototypes . | . . Parts Lost 5 | . 5 Power 1 | . 1 Propulsion 2 | . 2 Utility . | . . Weapon 2 | . 2 Highest Loss Streak 5 | . 5 Average Slot Usage (%) 75 | . 75 Engine 11 | . 11 Wheel 25 | . 25 Storage 14 | . 14 Energy Gun 22 | . 22 Naked Turns . | . . Heaviest Build 12 | 12 12 Greatest Support 20 | 20 20 Greatest Overweight (x) 1 | . 1 Average Overweight (x) . | . . Largest Inventory Capacity 6 | 6 6 Average Capacity 5 | 5 6 Most Carried 3 | 1 3 Average Carried 2 | . 2 Final Capacity 6 | 6 6 Final Carried 3 | 1 3 Class Distribution -------------------- 100% | Mutant Dominant Class ---------------- Mutant | -10/Materials Resources | -11 -10 ----------- Run | Scr Mat Matter Collected 226 | 210 16 Remotely . | . . Salvage Created 36 | . 36 Parts 1 | . 1 Haulers Intercepted . | . . Recyclers Shooed . | . . Parts Field Recycled . | . . Retrieved Matter . | . . Parts Self-Destructed . | . . Prevented . | . . Kills | -11 -10 ------- Run | Scr Mat Combat Hostiles Destroyed 2 | . 2 Guns 2 | . 2 Classes Destroyed 1 | . 1 Swarmer 2 | . 2 Best Kill Streak 2 | . 2 Combat Bots Only 2 | . 2 Max Kills in Single Turn 1 | . 1 Gunslinging . | . . Exploded . | . . Melee . | . . Uniques/NPCs Destroyed . | . . Combat | -11 -10 -------- Run | Scr Mat Damage Taken 555 | . 555 Core 251 | . 251 Absorbed by Shields . | . . Core Remaining (%) 100 | 100 . Volleys Fired 6 | . 6 Largest 2 | . 2 Hottest 90 | . 90 Shots Fired 10 | . 10 Gun 10 | . 10 Cannon . | . . Launcher . | . . Special . | . . Kinetic . | . . Thermal 10 | . 10 Explosive . | . . Electromagnetic . | . . Robot Hit Streak 2 | . 2 Robot Miss Streak 2 | . 2 Penetration Max . | . . Secondary Targets 1 | . 1 Max Gunslinging Chain 1 | . 1 Shots Hit Robots 5 | . 5 Core Hits 2 | . 2 Critical Hits . | . . Critical Kills . | . . Critical Parts Destroyed . | . . Melee Attacks . | . . Impact . | . . Slashing . | . . Piercing . | . . Sneak Attacks . | . . Combat Hostiles . | . . Follow-up Attacks . | . . Damage Inflicted 58 | . 58 Guns 58 | . 58 Cannons . | . . Explosions . | . . Melee . | . . Ramming . | . . Kinetic . | . . Thermal 58 | . 58 Explosive . | . . Electromagnetic . | . . Impact . | . . Slashing . | . . Piercing . | . . Highest Corruption . | . . Average Corruption . | . . Corruption Purged . | . . Overload Shots . | . . Overflow Damage . | . . Projectiles . | . . Explosions . | . . Melee . | . . Knockbacks . | . . Impact . | . . Kinetic . | . . Secondary . | . . Self-Inflicted Damage . | . . Shots . | . . Rammed . | . . Targets Rammed . | . . Kicked . | . . Crushed . | . . Highest Temperature 162 | . 162 Average Temperature 91 | . 91 Received Heat Transfer 240 | . 240 Siege Activations . | . . Robots Corrupted . | . . Combat Hostiles . | . . Parts Fried . | . . Impact Corruptions . | . . Robots Melted . | . . Combat Hostiles . | . . Parts Melted 1 | . 1 Heat Transferred 149 | . 149 Parts Sabotaged . | . . Parts Stolen . | . . Parts Stripped . | . . Power Chain Reactions . | . . Missiles Intercepted . | . . Alert | -11 -10 ------- Run | Scr Mat Peak Influence 100 | . 100 Average Influence 32 | . 43 Maximum Alert Level . | . . Low Security (%) 100 | 100 100 Level 1 . | . . Level 2 . | . . Level 3 . | . . Level 4 . | . . Level 5 . | . . High Security . | . . Max Security . | . . Squads Dispatched 2 | . 2 Investigation . | . . Extermination . | . . Reinforcement 2 | . 2 Assault . | . . Garrison . | . . Intercept . | . . Construction Impeded . | . . Haulers Reinforced . | . . Stealth | -11 -10 --------- Run | Scr Mat Distress Signals . | . . Communications Jammed . | . . Distress Signals . | . . Times Spotted 15 | . 15 Peak Tracking Total 12 | . 12 Tactical Retreats . | . . Traps | -11 -10 ------- Run | Scr Mat Traps Triggered . | . . Indirectly . | . . Trap Hack Attempts . | . . Triggered . | . . Disarmed . | . . Reprogrammed . | . . Reused . | . . Traps Extracted . | . . Installed . | . . Triggered . | . . Machines | -11 -10 ---------- Run | Scr Mat Machines Disabled . | . . Max in Single Turn . | . . Machines Sabotaged . | . . Garrisons Compromised . | . . Overloaded Fab Kills . | . . Fab Network Shutdowns . | . . Hacking | -11 -10 --------- Run | Scr Mat Machines Accessed . | . . Terminals . | . . Fabricators . | . . Repair Stations . | . . Recycling Units . | . . Scanalyzers . | . . Garrison Access . | . . Total Hacks . | . . Successful . | . . Failed . | . . Catastrophic . | . . Database Lockouts . | . . Manual . | . . Terminals . | . . Fabricators . | . . Repair Stations . | . . Recycling Units . | . . Scanalyzers . | . . Garrison Access . | . . Terminal Hacks . | . . Fabricator Hacks . | . . Repair Station Hacks . | . . Recycling Unit Hacks . | . . Scanalyzer . | . . Garrison Access Hacks . | . . Unauthorized Hacks . | . . Terminals . | . . Fabricators . | . . Repair Stations . | . . Recycling Units . | . . Scanalyzers . | . . Garrison Access . | . . Data Cores Recovered . | . . Used . | . . Hacking Detections . | . . Full Trace Events . | . . Feedback Events . | . . Feedback Blocked . | . . Robot Schematics Acquired . | . . Robots Built . | . . Matter . | . . Time . | . . Total Robot Build Rating . | . . Part Schematics Acquired . | . . Parts Built . | . . Matter . | . . Time . | . . Total Part Build Rating . | . . Parts Repaired . | . . Time . | . . Parts Recycled . | . . Recycled Matter . | . . Retrieved Matter . | . . Retrieved Components . | . . Parts Scanalyzed . | . . Part Schematics Acquired . | . . Parts Damaged . | . . Bothacking | -11 -10 ------------ Run | Scr Mat Used RIF Installer . | . . Robots Hacked . | . . Non-combat . | . . Combat . | . . Robot Hacks Applied . | . . Relay Couplers Released . | . . Robots Rewired . | . . Allies Hacked . | . . Hacks Repelled . | . . Allies | -11 -10 -------- Run | Scr Mat Total Allies . | . . Largest Group . | . . Highest-Rated Group . | . . Highest-Rated Ally . | . . Total Orders . | . . Ally Attacks . | . . Total Damage . | . . Kills . | . . Allies Corrupted . | . . Allies Melted . | . . Intel | -11 -10 ------- Run | Scr Mat Robot Analysis Total . | . . Derelict Logs Recovered . | . . Drone Launches . | . . Drone Recoveries . | . . Exploration | -11 -10 ------------- Run | Scr Mat Turns Passed 175 | 43 132 Spaces Moved 153 | 42 111 Core 23 | 12 11 Treads . | . . Legs . | . . Wheels 130 | 30 100 Hover . | . . Flight . | . . Fastest Speed 50 | 50 80 Average Speed 79 | 71 81 Slowest Speed 100 | 80 100 Overloaded Moves . | . . Propulsion Burnouts . | . . Robots Hopped . | . . Cave-ins Triggered . | . . Exploration Rate (%) 10 | 3 18 Regions Visited 1 Branch Regions . Pre-discovered Areas . | . . Known Exits Taken . | . . Unknown Exits Taken 1 | 1 . Scrap Searched . | . . Spaces Dug . | . . Terrain Destroyed . | . . Melee . | . . Projectile . | . . AOE . | . . Actions | -11 -10 --------- Run | Scr Mat Total 196 | 54 142 Wait 23 | . 23 Move 152 | 41 111 Hop . | . . Pick Up 9 | 7 2 Fast Attach . | . . Attach 6 | 6 . Detach . | . . Swap . | . . Drop . | . . Fire 6 | . 6 Melee . | . . Ram . | . . Kick . | . . Crush . | . . Escape Stasis . | . . Rewire . | . . Trap . | . . Miscellaneous . | . . Route ------- -11/Scrapyard -10/Materials History --------- Turn | Location | Event 5 | -11/Scrapyard | Discovered new exit (range 15) 44 | -11/Scrapyard | Entered Materials 172 | -10/Materials | Core integrity fell below 50% 175 | -10/Materials | Core integrity fell below 20% 176 | -10/Materials | Destroyed by G-34 Mercenary with Small Laser Last Messages --------------- GOAL=ESCAPE 00044_ ALERT: A rogue bot has emerged from the scrapyard. Terminate on contact. 00053_ Acquired Signal Interpreter. 00079_ O-16 Technician: "IFF HANDSHAKE FAILED. SECURING TERMINAL." 00082_ ALERT: Hostiles spotted, dispatching reinforcements to Terminal M002. 00090_ Acquired Targeting Computer. 00125_ ALERT: Hostiles spotted, dispatching reinforcements to Terminal M008. 00141_ S-10 Pest destroyed. 00141_ Switching to secondary target: S-10 Pest. 00149_ Med. Laser destroyed. 00150_ S-10 Pest destroyed. 00150_ Flight Unit melted. 00150_ S-10 Pest destroyed. 00151_ Acquired 16 matter. 00154_ Sml. Laser destroyed. 00156_ Ion Engine destroyed. 00164_ Wheel destroyed. Map ----- +----------------------------------------------------+ | ?????????????????????????????????????????????????? | | ?????????????????????????????????????????????????? | | ?????????????????? ?? ??????? #??????????????? | | ?????????????????? ?? ?????? ?????????????? | | ??????????????????# #? ??????# ?????????????? | | ??????????????????# ## "?????# #?????????????? | | ??????????????????# ## ""????# #?????????????? | | ??????????????????# ## ""????# #?????????????? | | ??????????????????# #? ??# #?????????????? | | ??????????????????# #? #?# #?????????????? | | ??????????????????# #? #?# #?????????????? | | ??????????????????# ## "T" #?# #?????????????? | | ??????????????????# ## """ ??# #?????????????? | | ????????????????### ## ????# #?????????????? | | ????????????????# ###+####### #########?????? | | ????????????????# #?????? | | ????????????????# #?????? | | ????????????????# ru #?????? | | ????????????????# ###/############## #?????? | | ????????????????# ##### =% #?????###### #?????? | | ????????????????# #???# =%*#?????#""""# #?????? | | ????????????????# #???# g= #?????#""R"# #?????? | | ????????????????# #???# """ #######"" "# #?????? | | ????????????????# #???# """ ## #?????? | | ????????????????# #???#g""" ## #?????? | | ????????????????# #???# @gg## #?????? | | ????????????????# #???#gg g ## #?????? | | ????????????????# #???#!! ## "" !! #?????? | | ????????????????? ????#!!! #### "Y !! ## | | ????????????????? ????#!! #??# "" !! | | ????????????????? ????# #??# T | | ????????????????? ????#######??# | | ????????????????? ?????????????# ########### | | ????????????????? ?????????????# ???????????# # | | ????????????????? ???????????? ???????????? # | | ?????????????????????????????[ ????????????? # | | ???????????????????????????#]] ??????????????? # | | ???????????????????????????#]] ?????????????????? | | ???????????????????????????#== ?????????????????? | | ???????????????????????????#=????????????????????? | | ???????????????????????????#?????????????????????? | | ?????????????????????????????????????????????????? | | ?????????????????????????????????????????????????? | | ?????????????????????????????????????????????????? | | ?????????????????????????????????????????????????? | | ?????????????????????????????????????????????????? | | ?????????????????????????????????????????????????? | | ?????????????????????????????????????????????????? | | ?????????????????????????????????????????????????? | | ?????????????????????????????????????????????????? | +----------------------------------------------------+ Best States ------------- Heat Dissipation 25 Energy Generation 10 Energy Capacity 250 Matter Stores 291 Matter Capacity 300 Sight Range 16 Terrain Scan Density 10 Evasion (%) 44 Item Schematics ----------------- None Robot Schematics ------------------ None Fabricated ------------ Nothing Alien Tech Used ----------------- None Achievements -------------- None Challenges ------------ None Game ------ Seed BeamExperimentalScreen Manual? 0 Play Time 00:06:48 Cumulative 8.7 hours Start 2020.02.18 @ 19:15:40 End 2020.02.19 @ 20:34:51 Sessions 3 Manual Loads 0 Difficulty Rogue Special Mode None Game No. 25 Rogue 25 Adventurer 0 Explorer 0 Win Type - Total 0 Types 0/0/0/0/0/0/0 Lore% 11 Gallery% 12 Achievement% 10 Wizard Run 0 Options --------- ASCII 0 Keyboard 0 Movement Mouse Keybinds 0 Fullscreen 1 Font 24/Smallcaps Map View 76x50 Tactical HUD 1 Map Filters NONE Filters NONE Steam 1 RUN: 66ec99ba-3058-473c-bd22-4787991f5528